[Event "56th Rubinstein Memorial D 2020"]
[Site "Polanica Zdroj"]
[Date "2020.08.18"]
[Round "4.16"]
[White "Jurkiewicz, Joanna"]
[Black "Grzebieniowski, Michal"]
[Result "1-0"]
[ECO "B17"]
[WhiteElo "1691"]
[BlackElo "1390"]
[Annotator "NA"]
[PlyCount "75"]
[EventDate "2020.08.15"]
[EventType "swiss"]
[EventCountry "POL"]
[SourceTitle "playchess.com"]
[Source "ChessBase"]
[SourceQuality "1"]
[TimeControl "40/5400+30:1800+30"]

1. e4 {[%emt 0:00:00]} c6 {[%emt 0:00:00]} 2. d4 {[%emt 0:00:00]} d5 {[%emt 0:00:00]} 3. Nc3 {[%emt 0:00:00]} dxe4 {[%emt 0:00:00]} 4. Nxe4 {[%emt 0:00:03]} Nd7 {[%emt 0:00:43]} 5. Nf3 {[%emt 0:02:03]} Ngf6 {[%emt 0:00:11]} 6. Ng3 {[%emt 0:03:49]} e6 {[%emt 0:00:08]} 7. Bd3 {[%emt 0:02:24]} Be7 {[%emt 0:00:14]} 8. O-O {[%emt 0:01:20]} O-O {[%emt 0:04:17]} 9. c3 {[%emt 0:04:50]} b6 {[%emt 0:04:01]} 10. Qc2 {[%emt 0:04:28]} h6 {[%emt 0:01:29]} 11. Ne5 {[%emt 0:09:47]} Bb7 {[%emt 0:00:09]} 12. Nxd7 {[%emt 0:09:59]} Qxd7 {[%emt 0:00:28]} 13. Be3 {[%emt 0:07:18]} Rfd8 {[%emt 0:02:22]} 14. Rad1 {[%emt 0:01:10]} Qc7 {[%emt 0:09:42]} 15. h3 {[%emt 0:06:32]} c5 {[%emt 0:02:35]} 16. dxc5 {[%emt 0:02:48]} Bxc5 {[%emt 0:00:14]} 17. Bxc5 {[%emt 0:00:54]} Qxc5 {[%emt 0:00:08]} 18. Ne4 {[%emt 0:02:07]} Bxe4 {[%emt 0:11:06]} 19. Bxe4 {[%emt 0:00:44]} Rac8 {[%emt 0:01:13]} 20. Bf3 {[%emt 0:01:52]} Qe7 {[%emt 0:00:39]} 21. Qa4 {[%emt 0:03:07]} e5 {[%emt 0:00:46]} 22. Rxd8+ {[%emt 0:04:42]} Rxd8 {[%emt 0:00:53]} 23. Rd1 {[%emt 0:00:02]} Rxd1+ {[%emt 0:00:27]} 24. Qxd1 {[%emt 0:00:22]} e4 {[%emt 0:01:16]} 25. Be2 {[%emt 0:00:35]} Qe6 {[%emt 0:00:18]} 26. Qa4 {[%emt 0:01:27]} a5 {[%emt 0:01:42]} 27. Bc4 {[%emt 0:04:41]} Qd6 {[%emt 0:00:19]} 28. Qb3 {[%emt 0:01:31]} Qc7 {[%emt 0:00:25]} 29. Bd5 {[%emt 0:01:32]} Qd7 {[%emt 0:02:22]} 30. c4 {[%emt 0:01:05]} Qd6 {[%emt 0:02:17]} 31. a3 {[%emt 0:01:46]} Kf8 {[%emt 0:00:29]} 32. Qe3 {[%emt 0:01:46]} Qc5 {[%emt 0:00:58]} 33. Qf4 {[%emt 0:02:40]} Nxd5 {[%emt 0:02:22]} 34. cxd5 {[%emt 0:00:02]} Qd4 {[%emt 0:03:11]} 35. Qb8+ {[%emt 0:01:56]} Ke7 {[%emt 0:00:53]} 36. Qc7+ {[%emt 0:00:08]} Ke8 {[%emt 0:02:13]} 37. d6 {[%emt 0:01:32]} Qf6 {[%emt 0:06:58]} 38. d7+ {[%emt 0:00:31]} 1-0

[Event "56th Rubinstein Memorial D 2020"]
[Site "Polanica Zdroj"]
[Date "2020.08.18"]
[Round "4.17"]
[White "Karalchuk, Alieksej"]
[Black "Grzelak, Piotr"]
[Result "0-1"]
[ECO "C00"]
[WhiteElo "1493"]
[BlackElo "1664"]
[Annotator "NA"]
[PlyCount "68"]
[EventDate "2020.08.15"]
[EventType "swiss"]
[EventCountry "POL"]
[SourceTitle "playchess.com"]
[Source "ChessBase"]
[SourceQuality "1"]
[TimeControl "40/5400+30:1800+30"]

1. e4 {[%emt 0:01:43]} e6 {[%emt 0:00:00]} 2. d3 {[%emt 0:00:10]} d5 {[%emt 0:00:00]} 3. Nd2 {[%emt 0:01:11]} c5 {[%emt 0:00:07]} 4. g3 {[%emt 0:00:10]} Nc6 {[%emt 0:00:55]} 5. Bg2 {[%emt 0:00:09]} d4 {[%emt 0:00:37]} 6. Ngf3 {[%emt 0:00:32]} e5 {[%emt 0:00:20]} 7. O-O {[%emt 0:00:44]} Bd6 {[%emt 0:00:09]} 8. Re1 {[%emt 0:00:53]} Nge7 {[%emt 0:00:31]} 9. h3 {[%emt 0:00:37]} O-O {[%emt 0:00:26]} 10. Nc4 {[%emt 0:00:36]} Bc7 {[%emt 0:00:25]} 11. c3 {[%emt 0:01:23]} b5 {[%emt 0:00:54]} 12. Na3 {[%emt 0:00:09]} Rb8 {[%emt 0:00:33]} 13. cxd4 {[%emt 0:00:43]} cxd4 {[%emt 0:01:15]} 14. Bg5 {[%emt 0:00:55]} Be6 {[%emt 0:01:19]} 15. Bxe7 {[%emt 0:02:42]} Qxe7 {[%emt 0:02:00]} 16. Nc2 {[%emt 0:05:43]} f6 {[%emt 0:01:10]} 17. Qd2 {[%emt 0:01:09]} Ba5 {[%emt 0:00:35]} 18. b4 {[%emt 0:02:06]} Nxb4 {[%emt 0:00:25]} 19. Rec1 {[%emt 0:03:25]} Nxc2 {[%emt 0:00:47]} 20. Qxc2 {[%emt 0:00:19]} Rfc8 {[%emt 0:00:32]} 21. Qe2 {[%emt 0:01:55]} Bc3 {[%emt 0:00:36]} 22. Rab1 {[%emt 0:00:10]} a5 {[%emt 0:00:49]} 23. Ne1 {[%emt 0:01:36]} Qa3 {[%emt 0:01:45]} 24. Rc2 {[%emt 0:01:58]} a4 {[%emt 0:01:26]} 25. f4 {[%emt 0:01:32]} b4 {[%emt 0:01:19]} 26. fxe5 {[%emt 0:01:41]} fxe5 {[%emt 0:01:56]} 27. Qh5 {[%emt 0:01:19]} Rb5 28. Qg5 {[%emt 0:01:00]} b3 {[%emt 0:04:27]} 29. axb3 {[%emt 0:00:47]} axb3 {[%emt 0:01:12]} 30. Rf2 {[%emt 0:01:08]} Rf8 {[%emt 0:02:17]} 31. Rxf8+ {[%emt 0:01:02]} Qxf8 {[%emt 0:00:20]} 32. Nf3 {[%emt 0:01:24]} b2 {[%emt 0:03:43]} 33. h4 {[%emt 0:01:55]} Qf6 {[%emt 0:01:33]} 34. Qh5 {[%emt 0:01:12]} Qg6 {[%emt 0:00:10]} 0-1

[Event "56th Rubinstein Memorial D 2020"]
[Site "Polanica Zdroj"]
[Date "2020.08.18"]
[Round "4.18"]
[White "Ratajczak, Hubert"]
[Black "Goral, Jan"]
[Result "1-0"]
[ECO "B38"]
[WhiteElo "1513"]
[BlackElo "1580"]
[Annotator "NA"]
[PlyCount "127"]
[EventDate "2020.08.15"]
[EventType "swiss"]
[EventCountry "POL"]
[SourceTitle "playchess.com"]
[Source "ChessBase"]
[SourceQuality "1"]
[TimeControl "40/5400+30:1800+30"]

1. e4 {[%emt 0:00:00]} c5 {[%emt 0:02:05]} 2. Nf3 {[%emt 0:00:10]} Nc6 {[%emt 0:01:11]} 3. d4 {[%emt 0:00:14]} cxd4 {[%emt 0:00:21]} 4. Nxd4 {[%emt 0:00:09]} g6 {[%emt 0:01:48]} 5. c4 {[%emt 0:00:25]} Bg7 {[%emt 0:00:17]} 6. Be3 {[%emt 0:00:16]} Nf6 {[%emt 0:00:19]} 7. Nc3 {[%emt 0:01:13]} O-O {[%emt 0:01:19]} 8. Be2 {[%emt 0:00:52]} d6 {[%emt 0:00:50]} 9. O-O {[%emt 0:00:24]} Bd7 {[%emt 0:00:35]} 10. Qd2 {[%emt 0:00:16]} Nxd4 {[%emt 0:01:38]} 11. Bxd4 {[%emt 0:00:09]} Bc6 {[%emt 0:00:12]} 12. f3 {[%emt 0:00:11]} Nd7 {[%emt 0:02:41]} 13. Be3 {[%emt 0:00:09]} Nc5 {[%emt 0:02:31]} 14. Rab1 {[%emt 0:01:23]} a5 {[%emt 0:00:45]} 15. b3 {[%emt 0:00:23]} Be5 {[%emt 0:00:58]} 16. g3 {[%emt 0:01:46]} e6 {[%emt 0:01:47]} 17. Rfd1 {[%emt 0:00:31]} h5 {[%emt 0:13:56]} 18. Nb5 {[%emt 0:02:17]} Qb6 {[%emt 0:07:41]} 19. f4 {[%emt 0:04:25]} Bxb5 {[%emt 0:08:18]} 20. fxe5 {[%emt 0:00:32]} Ba6 {[%emt 0:01:30]} 21. exd6 {[%emt 0:00:37]} Qc6 {[%emt 0:01:34]} 22. Bxc5 {[%emt 0:00:26]} Qxc5+ {[%emt 0:00:08]} 23. Qd4 {[%emt 0:00:24]} Qc6 {[%emt 0:00:57]} 24. e5 {[%emt 0:01:00]} b6 {[%emt 0:00:40]} 25. Rf1 {[%emt 0:03:38]} Rab8 {[%emt 0:01:45]} 26. Bf3 {[%emt 0:01:38]} Qc5 {[%emt 0:00:29]} 27. Qxc5 {[%emt 0:01:03]} bxc5 {[%emt 0:00:06]} 28. Bc6 {[%emt 0:00:51]} Rfc8 {[%emt 0:01:14]} 29. Be4 {[%emt 0:01:44]} Bb7 {[%emt 0:00:38]} 30. Bxb7 {[%emt 0:01:16]} Rxb7 {[%emt 0:00:02]} 31. Rf3 {[%emt 0:03:37]} a4 {[%emt 0:01:07]} 32. h4 {[%emt 0:01:31]} Rcb8 {[%emt 0:01:38]} 33. Kf2 {[%emt 0:00:45]} Kf8 {[%emt 0:00:32]} 34. Rd3 {[%emt 0:01:35]} Ke8 {[%emt 0:00:59]} 35. Rf3 {[%emt 0:00:38]} Rb4 {[%emt 0:02:52]} 36. Rc3 {[%emt 0:02:21]} Kd7 {[%emt 0:03:04]} 37. Ke3 {[%emt 0:00:09]} f6 {[%emt 0:00:50]} 38. exf6 {[%emt 0:00:44]} R4b6 {[%emt 0:02:19]} 39. Rd3 {[%emt 0:03:27]} Rf8 {[%emt 0:00:28]} 40. Rf1 {[%emt 0:02:34]} axb3 {[%emt 0:00:19]} 41. Rxb3 {[%emt 0:31:15]} Rxb3+ {[%emt 0:30:49]} 42. axb3 {[%emt 0:00:15]} Kxd6 {[%emt 0:00:09]} 43. Ke4 {[%emt 0:00:43]} e5 {[%emt 0:03:14]} 44. Rd1+ {[%emt 0:01:10]} Ke6 {[%emt 0:00:08]} 45. Rd5 {[%emt 0:00:26]} Kxf6 {[%emt 0:00:24]} 46. Rxc5 {[%emt 0:00:16]} Rb8 {[%emt 0:01:17]} 47. Rb5 {[%emt 0:00:26]} Rd8 {[%emt 0:00:55]} 48. Rb6+ {[%emt 0:00:14]} Kg7 {[%emt 0:00:36]} 49. Kxe5 {[%emt 0:00:11]} Rd3 {[%emt 0:00:09]} 50. Kf4 {[%emt 0:00:07]} Rd4+ {[%emt 0:00:09]} 51. Ke3 {[%emt 0:00:29]} Rg4 {[%emt 0:00:17]} 52. Kf3 {[%emt 0:00:08]} Rd4 {[%emt 0:00:05]} 53. c5 {[%emt 0:00:13]} Rd3+ {[%emt 0:00:07]} 54. Kf4 {[%emt 0:00:04]} Rc3 {[%emt 0:00:05]} 55. c6 {[%emt 0:00:06]} Kh6 {[%emt 0:00:11]} 56. b4 {[%emt 0:00:07]} Rc4+ {[%emt 0:00:04]} 57. Kf3 {[%emt 0:00:11]} Rc3+ {[%emt 0:00:05]} 58. Kg2 {[%emt 0:00:05]} Rc2+ {[%emt 0:00:04]} 59. Kh3 {[%emt 0:00:06]} Rc4 {[%emt 0:00:39]} 60. b5 {[%emt 0:00:10]} Kg7 {[%emt 0:00:45]} 61. Rb7+ {[%emt 0:00:10]} Kf6 {[%emt 0:00:30]} 62. c7 {[%emt 0:00:08]} Ke6 {[%emt 0:00:13]} 63. b6 {[%emt 0:00:08]} Kd7 {[%emt 0:00:38]} 64. Rb8 {[%emt 0:00:40]} 1-0

[Event "56th Rubinstein Memorial D 2020"]
[Site "Polanica Zdroj"]
[Date "2020.08.18"]
[Round "4.19"]
[White "Kolodziejski, Grzegorz"]
[Black "Garwacki, Kornel"]
[Result "1/2-1/2"]
[ECO "C68"]
[WhiteElo "1550"]
[BlackElo "1492"]
[Annotator "NA"]
[PlyCount "117"]
[EventDate "2020.08.15"]
[EventType "swiss"]
[EventCountry "POL"]
[SourceTitle "playchess.com"]
[Source "ChessBase"]
[SourceQuality "1"]
[TimeControl "40/5400+30:1800+30"]

1. e4 {[%emt 0:00:00]} e5 {[%emt 0:00:00]} 2. Nf3 {[%emt 0:00:00]} Nc6 {[%emt 0:00:00]} 3. Bb5 {[%emt 0:00:06]} a6 {[%emt 0:00:00]} 4. Bxc6 {[%emt 0:00:25]} dxc6 {[%emt 0:00:11]} 5. O-O {[%emt 0:00:10]} Bd6 {[%emt 0:00:25]} 6. d4 {[%emt 0:00:26]} exd4 {[%emt 0:00:37]} 7. Qxd4 {[%emt 0:00:39]} f6 {[%emt 0:02:35]} 8. e5 {[%emt 0:02:02]} fxe5 {[%emt 0:02:03]} 9. Nxe5 {[%emt 0:00:11]} Qf6 {[%emt 0:01:51]} 10. Re1 {[%emt 0:00:37]} Ne7 {[%emt 0:00:52]} 11. Nf3 {[%emt 0:01:27]} O-O {[%emt 0:03:18]} 12. Qxf6 {[%emt 0:01:38]} Rxf6 {[%emt 0:00:18]} 13. Bg5 {[%emt 0:00:29]} Re6 {[%emt 0:00:51]} 14. Nc3 {[%emt 0:00:15]} Nd5 {[%emt 0:02:49]} 15. Ne4 {[%emt 0:01:18]} Bd7 {[%emt 0:03:58]} 16. Nxd6 {[%emt 0:01:51]} Rxe1+ {[%emt 0:01:43]} 17. Rxe1 {[%emt 0:00:13]} cxd6 {[%emt 0:00:07]} 18. c4 {[%emt 0:00:30]} Nb6 {[%emt 0:00:25]} 19. b3 {[%emt 0:00:17]} Re8 {[%emt 0:01:22]} 20. Kf1 {[%emt 0:00:22]} Kf7 {[%emt 0:02:44]} 21. Nd2 {[%emt 0:01:09]} Bf5 {[%emt 0:01:34]} 22. f3 {[%emt 0:02:02]} h6 {[%emt 0:02:18]} 23. Bf4 {[%emt 0:02:55]} d5 {[%emt 0:02:29]} 24. Bc7 {[%emt 0:00:31]} Rxe1+ {[%emt 0:01:31]} 25. Kxe1 {[%emt 0:00:06]} Nd7 {[%emt 0:00:36]} 26. cxd5 {[%emt 0:00:19]} cxd5 {[%emt 0:00:14]} 27. Ke2 {[%emt 0:00:26]} Ke6 {[%emt 0:02:44]} 28. Ke3 {[%emt 0:01:36]} Ne5 {[%emt 0:06:47]} 29. Bxe5 {[%emt 0:01:36]} Kxe5 {[%emt 0:00:15]} 30. f4+ {[%emt 0:00:05]} Kd6 {[%emt 0:00:44]} 31. Kd4 {[%emt 0:00:08]} b6 {[%emt 0:01:11]} 32. Nf1 {[%emt 0:00:52]} g6 {[%emt 0:01:59]} 33. Ne3 {[%emt 0:00:17]} Be6 {[%emt 0:03:25]} 34. g4 {[%emt 0:00:18]} Bf7 {[%emt 0:01:14]} 35. f5 {[%emt 0:00:08]} g5 {[%emt 0:01:10]} 36. Ng2 {[%emt 0:00:18]} Be8 {[%emt 0:05:18]} 37. h4 {[%emt 0:00:40]} Bb5 {[%emt 0:01:14]} 38. hxg5 {[%emt 0:01:01]} hxg5 {[%emt 0:00:11]} 39. Ne1 {[%emt 0:01:41]} Be2 {[%emt 0:00:29]} 40. Ke3 {[%emt 0:00:08]} Bxg4 {[%emt 0:00:25]} 41. f6 {[%emt 0:30:33]} Bh5 {[%emt 0:39:27]} 42. Kd4 {[%emt 0:00:09]} Ke6 {[%emt 0:02:34]} 43. a4 {[%emt 0:02:33]} Bd1 {[%emt 0:01:05]} 44. a5 {[%emt 0:00:25]} bxa5 {[%emt 0:00:56]} 45. f7 {[%emt 0:00:07]} Kxf7 {[%emt 0:00:24]} 46. Kxd5 {[%emt 0:00:06]} Bxb3+ {[%emt 0:00:25]} 47. Kd4 {[%emt 0:00:09]} a4 {[%emt 0:00:42]} 48. Nd3 {[%emt 0:00:13]} Kf6 {[%emt 0:00:32]} 49. Nf2 {[%emt 0:00:10]} Kf5 {[%emt 0:00:42]} 50. Kc3 {[%emt 0:00:25]} Kf4 {[%emt 0:00:15]} 51. Nh3+ {[%emt 0:00:05]} Kg4 {[%emt 0:00:14]} 52. Nxg5 {[%emt 0:00:02]} Kxg5 {[%emt 0:00:48]} 53. Kb2 {[%emt 0:00:04]} a5 {[%emt 0:00:14]} 54. Ka1 {[%emt 0:00:07]} Kf4 {[%emt 0:00:08]} 55. Kb2 {[%emt 0:00:05]} Ke3 {[%emt 0:00:13]} 56. Ka1 {[%emt 0:00:03]} Kd2 {[%emt 0:00:26]} 57. Kb2 {[%emt 0:00:06]} Bc2 {[%emt 0:00:20]} 58. Ka1 {[%emt 0:00:03]} Bb3 {[%emt 0:00:28]} 59. Kb2 {[%emt 0:00:05]} 1/2-1/2

[Event "56th Rubinstein Memorial D 2020"]
[Site "Polanica Zdroj"]
[Date "2020.08.18"]
[Round "4.20"]
[White "Lisiecki, Robert"]
[Black "Olsztynski, Andrzej"]
[Result "0-1"]
[ECO "B30"]
[WhiteElo "1749"]
[BlackElo "1400"]
[Annotator "NA"]
[PlyCount "92"]
[EventDate "2020.08.15"]
[EventType "swiss"]
[EventCountry "POL"]
[SourceTitle "playchess.com"]
[Source "ChessBase"]
[SourceQuality "1"]
[TimeControl "40/5400+30:1800+30"]

1. e4 {[%emt 0:00:00]} c5 {[%emt 0:05:57]} 2. Nf3 {[%emt 0:00:00]} Nc6 {[%emt 0:00:10]} 3. Bb5 {[%emt 0:00:00]} a6 {[%emt 0:00:51]} 4. Bxc6 {[%emt 0:00:00]} dxc6 {[%emt 0:00:21]} 5. e5 {[%emt 0:00:16]} Bg4 {[%emt 0:00:27]} 6. O-O {[%emt 0:01:31]} Qd5 {[%emt 0:00:36]} 7. Nc3 {[%emt 0:00:28]} Bxf3 {[%emt 0:00:34]} 8. Nxd5 {[%emt 0:00:06]} Bxd1 {[%emt 0:00:18]} 9. Nc7+ {[%emt 0:00:04]} Kd8 {[%emt 0:00:56]} 10. Nxa8 {[%emt 0:00:02]} Bxc2 {[%emt 0:00:39]} 11. a4 {[%emt 0:04:13]} a5 {[%emt 0:01:59]} 12. Re1 {[%emt 0:00:36]} e6 {[%emt 0:00:44]} 13. Nb6 {[%emt 0:00:58]} Bd3 {[%emt 0:01:01]} 14. Re3 {[%emt 0:00:43]} c4 {[%emt 0:00:33]} 15. b3 {[%emt 0:02:45]} Bc5 {[%emt 0:06:33]} 16. Nxc4 {[%emt 0:00:11]} Bxc4 {[%emt 0:02:10]} 17. bxc4 {[%emt 0:01:01]} Bxe3 {[%emt 0:00:11]} 18. fxe3 {[%emt 0:00:04]} Ne7 {[%emt 0:01:24]} 19. Ba3 {[%emt 0:01:00]} Nc8 {[%emt 0:01:24]} 20. Rb1 {[%emt 0:00:52]} Kc7 {[%emt 0:05:38]} 21. Bd6+ {[%emt 0:01:12]} Nxd6 {[%emt 0:00:13]} 22. exd6+ {[%emt 0:00:05]} Kxd6 {[%emt 0:00:18]} 23. Rxb7 {[%emt 0:00:04]} Kc5 {[%emt 0:01:23]} 24. Rxf7 {[%emt 0:00:13]} Kxc4 {[%emt 0:00:44]} 25. Rxg7 {[%emt 0:00:06]} c5 {[%emt 0:01:35]} 26. Kf2 {[%emt 0:02:48]} Kb4 {[%emt 0:01:45]} 27. Rg4+ {[%emt 0:02:07]} c4 {[%emt 0:02:55]} 28. h4 {[%emt 0:00:37]} Rc8 {[%emt 0:01:26]} 29. Re4 {[%emt 0:06:26]} Kxa4 {[%emt 0:01:36]} 30. Rxe6 {[%emt 0:00:04]} Kb3 {[%emt 0:03:31]} 31. g4 {[%emt 0:03:11]} a4 {[%emt 0:00:41]} 32. Re7 {[%emt 0:02:04]} a3 {[%emt 0:00:30]} 33. Rb7+ {[%emt 0:05:38]} Kc2 {[%emt 0:00:21]} 34. Ra7 {[%emt 0:00:09]} Kxd2 {[%emt 0:00:42]} 35. Rxa3 {[%emt 0:02:16]} c3 {[%emt 0:00:16]} 36. g5 {[%emt 0:05:01]} c2 {[%emt 0:00:19]} 37. Ra1 {[%emt 0:00:20]} Rb8 {[%emt 0:00:56]} 38. Kf3 {[%emt 0:03:28]} Rb1 {[%emt 0:01:36]} 39. Ra2 {[%emt 0:00:12]} Kd3 {[%emt 0:00:24]} 40. Rxc2 {[%emt 0:00:24]} Kxc2 {[%emt 0:00:09]} 41. Kg4 {[%emt 0:31:37]} Kd3 {[%emt 0:30:51]} 42. h5 {[%emt 0:01:13]} Ke4 {[%emt 0:00:20]} 43. h6 {[%emt 0:00:55]} Rg1+ {[%emt 0:00:19]} 44. Kh5 {[%emt 0:00:04]} Kf5 {[%emt 0:00:46]} 45. e4+ {[%emt 0:00:05]} Kxe4 {[%emt 0:00:09]} 46. g6 {[%emt 0:00:07]} Rxg6 {[%emt 0:00:12]} 0-1

[Event "56th Rubinstein Memorial D 2020"]
[Site "Polanica Zdroj"]
[Date "2020.08.19"]
[Round "5.1"]
[White "Simon, Marek"]
[Black "Gromczak, Dariusz"]
[Result "1/2-1/2"]
[ECO "A40"]
[WhiteElo "1878"]
[BlackElo "1785"]
[Annotator "NA RC"]
[PlyCount "28"]
[EventDate "2020.08.15"]
[EventType "swiss"]
[EventCountry "POL"]
[SourceTitle "playchess.com"]
[Source "ChessBase"]
[SourceQuality "1"]
[TimeControl "40/5400+30:1800+30"]

{[%evp 8,28,74,64,76,57,83,79,84,66,62,0,11,-1,2,-18,0,-15,-7,-42,-43,-31,10]} 1. d4 {[%emt 0:01:11]} g6 {[%emt 0:00:00]} 2. c4 {[%emt 0:00:17]} Bg7 {[%emt 0:00:39]} 3. e4 {[%emt 0:00:19]} d6 {[%emt 0:00:16]} 4. Nc3 {[%emt 0:00:50]} e6 {[%emt 0:02:29]} 5. Be3 {[%emt 0:10:13]} Ne7 {[%emt 0:01:10]} 6. h4 {[%emt 0:09:36]} h6 {[%emt 0:02:07]} 7. Qd2 {[%emt 0:13:43]} Nd7 {[%emt 0:03:47]} 8. Nge2 {[%emt 0:12:03]} d5 {[%emt 0:19:17]} 9. exd5 {[%emt 0:10:33]} ({White should play} 9. Ng3 $14) 9... exd5 {[%emt 0:00:40]} 10. h5 {[%emt 0:02:59]} g5 {[%emt 0:04:38]} 11. Ng3 {[%emt 0:06:16]} dxc4 {[%emt 0:09:48]} 12. Bxc4 {[%emt 0:01:24]} Nb6 {[%emt 0:00:18]} 13. Bd3 f5 14. f4 g4 $11 1/2-1/2

[Event "56th Rubinstein Memorial D 2020"]
[Site "Polanica Zdroj"]
[Date "2020.08.19"]
[Round "5.6"]
[White "Szczygiel, Jakub"]
[Black "Pyka, Roman"]
[Result "1/2-1/2"]
[ECO "A52"]
[WhiteElo "1802"]
[BlackElo "1873"]
[Annotator "NA RC"]
[PlyCount "24"]
[EventDate "2020.08.15"]
[EventType "swiss"]
[EventCountry "POL"]
[SourceTitle "playchess.com"]
[Source "ChessBase"]
[SourceQuality "1"]
[TimeControl "40/5400+30:1800+30"]

{[%evp 8,24,43,39,37,10,29,8,23,7,9,12,11,0,0,0,0,-14,31]} 1. d4 {[%emt 0:00:00]} Nf6 {[%emt 0:00:09]} 2. c4 {[%emt 0:00:00]} e5 {[%emt 0:00:16]} 3. dxe5 {[%emt 0:00:00]} Ng4 {[%emt 0:00:13]} 4. Nf3 {[%emt 0:00:07]} Nc6 {[%emt 0:00:14]} 5. e3 {[%emt 0:00:41]} Bb4+ {[%emt 0:02:32]} 6. Nbd2 {[%emt 0:00:31]} Ngxe5 {[%emt 0:01:35]} 7. Be2 {[%emt 0:00:31]} O-O {[%emt 0:00:33]} 8. a3 {[%emt 0:00:20]} Be7 {[%emt 0:00:27]} 9. Nxe5 {[%emt 0:01:53]} Nxe5 {[%emt 0:00:25]} 10. Nf3 {[%emt 0:00:06]} d6 {[%emt 0:01:16]} 11. Qc2 {[%emt 0:02:00]} Bf6 {[%emt 0:01:36]} 12. Bd2 {[%emt 0:00:53]} Nxf3+ $14 {[%emt 0:03:22]} 1/2-1/2

[Event "56th Rubinstein Memorial D 2020"]
[Site "Polanica Zdroj"]
[Date "2020.08.19"]
[Round "5.7"]
[White "Janicki, Rafal"]
[Black "Kalkowski, Igor"]
[Result "0-1"]
[ECO "B22"]
[WhiteElo "1851"]
[BlackElo "1747"]
[Annotator "NA RC"]
[PlyCount "72"]
[EventDate "2020.08.15"]
[EventType "swiss"]
[EventCountry "POL"]
[SourceTitle "playchess.com"]
[Source "ChessBase"]
[SourceQuality "1"]
[TimeControl "40/5400+30:1800+30"]

{[%evp 13,72,41,56,17,62,35,74,32767,0,0,0,0,0,-108,-87,-409,-451,-445,-422,-418,-406,-522,-426,-411,-391,-349,-369,-375,-357,-381,-343,-346,-364,-380,-309,-290,-222,-208,-227,-212,-219,-219,-222,-322,-355,-364,-370,-343,-362,-380,-408,-406,-447,-448,-525,-470,-426,-439,-400,-949,-1047]} 1. e4 {[%emt 0:00:00]} c5 {[%emt 0:00:00]} 2. c3 {[%emt 0:00:03]} g6 {[%emt 0:00:00]} 3. d4 {[%emt 0:00:05]} cxd4 {[%emt 0:00:00]} 4. cxd4 {[%emt 0:00:06]} d5 {[%emt 0:00:00]} 5. e5 {[%emt 0:00:16]} Bg7 {[%emt 0:00:09]} 6. Nf3 {[%emt 0:00:12]} Nc6 {[%emt 0:00:06]} 7. Bb5 {[%emt 0:00:43]} Bg4 {[%emt 0:01:59]} 8. Nbd2 {[%emt 0:01:45]} (8. Bxc6+ $5 bxc6 9. Nbd2 $14) 8... Nh6 {[%emt 0:02:54]} 9. O-O {[%emt 0:01:18]} (9. Bxc6+ $5 bxc6 10. h3 $14) 9... O-O {[%emt 0:00:23] B27: Sicilian: 2 Nf3, unusual Black 2nd moves.} 10. h3 {[%emt 0:01:12]} Nxd4 {[%emt 0:01:52]} 11. hxg4 {[%emt 0:03:17]} Nxb5 {[%emt 0:00:09] [#]} 12. g5 $146 {[%emt 0:07:54]} ({Predecessor:} 12. Qa4 Qd7 13. g5 Ng4 14. e6 Qxe6 15. Qxb5 Qd6 16. Qa4 f5 17. gxf6 Nxf6 18. b3 {1-0 (57) Sideris,T (1970)-Nemtsas,H (1917) Athens 2018}) 12... Nf5 {[%emt 0:06:48]} 13. Qa4 {[%emt 0:08:00]} (13. a4 $1 $11 {keeps the balance.} Nbd4 14. g4) 13... Qd7 {[%emt 0:00:16]} 14. g4 $2 {[%emt 0:02:30] [#]} (14. Rd1 $17) 14... Nfd4 $1 {[%emt 0:00:20]} 15. Nh2 {[%emt 0:18:05]} Bxe5 {[%emt 0:02:42]} 16. f4 {[%emt 0:00:15]} Bd6 {[%emt 0:00:34]} 17. Ndf3 {[%emt 0:02:09]} Nxf3+ {[%emt 0:07:04]} 18. Rxf3 {[%emt 0:01:43]} e5 {[%emt 0:00:59]} 19. fxe5 {[%emt 0:03:55]} Bxe5 {[%emt 0:00:21]} 20. Bf4 {[%emt 0:02:26]} Bg7 {[%emt 0:02:15]} 21. Rd1 {[%emt 0:01:33]} a6 {[%emt 0:00:28]} 22. Rfd3 {[%emt 0:00:50]} d4 {[%emt 0:00:19]} ({Less strong is} 22... Bxb2 23. Qb4 $19) 23. Qb3 {[%emt 0:01:32]} Qe6 {[%emt 0:03:17]} 24. a4 {[%emt 0:03:23] [#]} Nc3 $1 {[%emt 0:04:50]} 25. Qxe6 {[%emt 0:03:15]} fxe6 {[%emt 0:00:05]} 26. bxc3 {[%emt 0:02:19]} Rxf4 {[%emt 0:00:08]} 27. cxd4 {[%emt 0:01:25]} Rd8 {[%emt 0:00:13]} 28. Re1 {[%emt 0:04:31]} (28. Nf3 {keeps fighting.}) 28... Rdxd4 {[%emt 0:01:21]} 29. Rb3 {[%emt 0:00:42]} Rb4 {[%emt 0:03:17]} 30. Rxb4 {[%emt 0:01:22]} Rxb4 {[%emt 0:00:32]} 31. Rxe6 {[%emt 0:00:49]} Rxa4 {[%emt 0:00:09]} 32. Re8+ {[%emt 0:00:13]} Bf8 {[%emt 0:00:33]} ({Resist} 32... Kf7 33. Rc8 $19) 33. Rb8 {[%emt 0:01:00]} b5 {[%emt 0:00:14]} 34. Kg2 {[%emt 0:00:35]} Kf7 {[%emt 0:01:41]} 35. Nf3 {[%emt 0:00:47]} Rxg4+ {[%emt 0:00:23]} 36. Kh3 $2 {[%emt 0:00:10] [#]} (36. Kf1 Re4 37. Ra8) 36... Rg3+ $19 {[%emt 0:00:19] Decoy} 0-1